[Event "Czech Extraliga 2023-24"]
[Site "Czech Republic"]
[Date "2024.04.07"]
[Round "11.4"]
[White "Rubes, Jan"]
[Black "Vlasak, Lukas"]
[Result "1-0"]
[ECO "D35"]
[WhiteElo "2432"]
[BlackElo "2464"]
[Annotator "RC"]
[PlyCount "121"]
[EventDate "2023.10.14"]
[EventCountry "CZE"]
[SourceTitle "playchess.com"]
[Source "ChessBase"]
[SourceQuality "1"]
[TimeControl "40/5400+30:1800+30"]

1. c4 {[%emt 0:00:02]} e6 {[%emt 0:00:23]} 2. Nc3 {[%emt 0:00:06]} d5 {[%emt 0:00:28]} 3. d4 {[%emt 0:00:05]} h6 {[%emt 0:00:40]} 4. Nf3 {[%emt 0:01:39]} Nf6 {[%emt 0:01:06]} 5. g3 {[%emt 0:09:58]} Bd6 {[%emt 0:01:33]} 6. Bg2 {[%emt 0:00:09]} Nc6 {[%emt 0:00:33]} 7. O-O {[%emt 0:01:35]} O-O {[%emt 0:00:09]} 8. cxd5 {[%emt 0:17:13]} exd5 {[%emt 0:00:50]} 9. Bf4 {[%emt 0:03:27]} Re8 {[%emt 0:09:15]} 10. e3 {[%emt 0:04:05]} Bg4 {[%emt 0:05:34]} 11. Bxd6 {[%emt 0:05:40]} Qxd6 {[%emt 0:03:09]} 12. Qb3 {[%emt 0:00:13]} Rab8 {[%emt 0:11:01]} 13. Rfc1 {[%emt 0:00:35]} a6 {[%emt 0:04:55]} 14. a4 {[%emt 0:03:55]} Bxf3 {[%emt 0:06:24]} 15. Bxf3 {[%emt 0:00:07]} Ne7 {[%emt 0:00:20]} 16. Qa3 {[%emt 0:09:46]} Qd7 {[%emt 0:05:57]} 17. b4 {[%emt 0:00:33]} Qf5 {[%emt 0:04:52]} 18. Bg2 {[%emt 0:02:05]} c6 {[%emt 0:01:05]} 19. b5 {[%emt 0:01:20]} axb5 {[%emt 0:00:19]} 20. axb5 {[%emt 0:00:05]} h5 {[%emt 0:01:37]} 21. Qd6 {[%emt 0:03:34]} Rbd8 {[%emt 0:06:26]} 22. Qf4 {[%emt 0:03:14]} Qd7 {[%emt 0:02:48]} 23. bxc6 {[%emt 0:02:13]} bxc6 {[%emt 0:00:46]} 24. Na4 {[%emt 0:00:31]} Ng6 {[%emt 0:00:40]} 25. Qg5 {[%emt 0:04:46]} Rb8 {[%emt 0:02:57]} 26. Nc5 {[%emt 0:00:39]} Qe7 {[%emt 0:00:16]} 27. Rcb1 {[%emt 0:04:20]} Nf8 {[%emt 0:01:27]} 28. Bh3 {[%emt 0:03:05]} Qc7 {[%emt 0:07:24]} 29. Bf5 {[%emt 0:02:30]} Rxb1+ {[%emt 0:00:51]} 30. Rxb1 {[%emt 0:00:02]} Rb8 {[%emt 0:00:23]} 31. Ra1 {[%emt 0:04:05]} Qe7 {[%emt 0:02:28]} 32. Qf4 {[%emt 0:01:05]} Rb6 {[%emt 0:00:29]} 33. Ra8 {[%emt 0:01:03]} g6 {[%emt 0:00:31]} 34. Bd3 {[%emt 0:05:53]} Kg7 {[%emt 0:00:31]} 35. Qe5 {[%emt 0:01:54]} Qxe5 {[%emt 0:03:16]} 36. dxe5 {[%emt 0:00:02]} N6h7 {[%emt 0:00:54]} 37. Rc8 {[%emt 0:03:47]} h4 {[%emt 0:04:23]} 38. gxh4 {[%emt 0:00:25]} Ne6 {[%emt 0:07:20]} 39. Nxe6+ {[%emt 0:00:05]} fxe6 {[%emt 0:00:12]} 40. Kg2 {[%emt 0:01:33]} Nf8 {[%emt 0:01:51]} 41. Rc7+ {[%emt 0:30:17]} Kh6 {[%emt 0:30:10]} 42. Kg3 {[%emt 0:02:48]} c5 {[%emt 0:01:13]} 43. Rxc5 {[%emt 0:00:39]} Nd7 {[%emt 0:00:09]} 44. Rb5 {[%emt 0:00:01]} Rc6 {[%emt 0:01:23]} 45. Kf4 {[%emt 0:00:00]} Rc8 {[%emt 0:00:00]} 46. Bf1 {[%emt 0:00:00]} Rf8+ {[%emt 0:00:00]} 47. Kg3 {[%emt 0:00:00]} Nxe5 {[%emt 0:00:00]} 48. f4 {[%emt 0:00:00]} Nd7 {[%emt 0:00:00]} 49. Bh3 {[%emt 0:00:00]} Re8 {[%emt 0:00:00]} 50. Bg4 {[%emt 0:00:00]} Nf6 {[%emt 0:00:00]} 51. Rb6 {[%emt 0:00:00]} Nh5+ {[%emt 0:00:00]} 52. Bxh5 {[%emt 0:00:00]} Kxh5 {[%emt 0:00:00]} 53. Rd6 {[%emt 0:00:00]} Re7 {[%emt 0:00:00]} 54. Rd8 {[%emt 0:00:00]} Kh6 {[%emt 0:00:00]} 55. Kg4 {[%emt 0:00:00]} Ra7 {[%emt 0:00:00]} 56. Re8 {[%emt 0:00:00]} Ra6 {[%emt 0:00:00]} 57. Re7 {[%emt 0:00:00]} Rd6 {[%emt 0:00:00]} 58. h3 {[%emt 0:00:00]} d4 {[%emt 0:01:41]} 59. exd4 {[%emt 0:00:00]} Rxd4 {[%emt 0:00:12]} 60. Rxe6 {[%emt 0:00:00]} Rd5 {[%emt 0:00:22]} 61. h5 {[%emt 0:09:51]} 1-0

[Event "Czech Extraliga 2023-24"]
[Site "Czech Republic"]
[Date "2024.04.07"]
[Round "11.4"]
[White "Rasik, Vitezslav"]
[Black "Zwardon, Vojtech"]
[Result "1/2-1/2"]
[ECO "B31"]
[WhiteElo "2411"]
[BlackElo "2452"]
[Annotator "TA"]
[PlyCount "119"]
[EventDate "2023.10.14"]
[EventCountry "CZE"]
[SourceTitle "playchess.com"]
[Source "ChessBase"]
[SourceQuality "1"]
[TimeControl "40/5400+30:1800+30"]

{[%evp 17,119,0,0,0,0,0,0,0,0,0,0,0,0,2,0,0,0,0,11,0,0,-7,-8,-19,-12,-15,0,-18,-11,-20,-18,-9,-17,-12,-8,-8,-8,-11,-13,-60,-4,-8,0,-49,-27,-52,-43,-48,0,-43,-39,-44,-41,-46,-41,-48,-41,-45,-26,-37,-19,-15,-18,-11,-12,-12,-8,-9,-8,-9,-9,-9,-9,-17,0,0,0,-8,0,0,0,0,0,0,0,0,0,0,0,0,0,0,0,0,0,0,0,0,0,0,0,0,0,0]} 1. e4 {[%emt 0:00:03]} c5 {[%emt 0:00:01]} 2. Nf3 {[%emt 0:00:07]} Nc6 {[%emt 0:00:01]} 3. Bb5 {[%emt 0:00:11]} g6 {[%emt 0:00:01]} 4. c3 {[%emt 0:00:21]} Nf6 {[%emt 0:00:07]} 5. Qe2 {[%emt 0:00:13]} Bg7 {[%emt 0:00:14]} 6. d4 {[%emt 0:00:27]} cxd4 {[%emt 0:05:35]} 7. cxd4 {[%emt 0:00:45]} d5 {[%emt 0:00:31]} 8. e5 {[%emt 0:00:13]} Ne4 {[%emt 0:00:12]} 9. O-O {[%emt 0:00:21]} O-O {[%emt 0:00:10]} 10. Be3 {[%emt 0:00:22] was the old line (10.Rd1). B31: Sicilian: 2...Nc6 3 Bb5 g6.} f6 {[%emt 0:02:10]} 11. Nbd2 {[%emt 0:02:04]} Nxd2 {[%emt 0:00:43]} 12. Qxd2 {[%emt 0:01:32]} Bg4 {[%emt 0:09:03]} 13. Bxc6 {[%emt 0:12:39]} bxc6 {[%emt 0:00:36]} 14. exf6 {[%emt 0:01:29]} exf6 {[%emt 0:00:59]} 15. Ne1 {[%emt 0:01:24]} Bf5 {[%emt 0:03:18]} 16. Nd3 $146 {[%emt 0:32:06]} ({Predecessor:} 16. Rc1 Qb6 17. Qc3 a5 18. Nf3 Rfc8 19. Rfe1 Bf8 20. a3 Rab8 21. Nh4 Bd7 22. Re2 {0-1 Fechner,J (2400)-Muck,C (2000) W-Cup12 sf05 corr 2003}) 16... Bxd3 {[%emt 0:00:05]} 17. Qxd3 {[%emt 0:00:02]} Qb6 {[%emt 0:00:05]} 18. b3 {[%emt 0:04:39]} f5 {[%emt 0:00:09]} 19. f3 {[%emt 0:02:30]} a5 {[%emt 0:02:50]} 20. Rab1 {[%emt 0:03:20]} Rfe8 {[%emt 0:03:29][%cal Oe8e3]} 21. Bf2 {[%emt 0:01:28]} a4 {[%emt 0:08:20]} 22. Rfc1 {[%emt 0:07:51]} axb3 {[%emt 0:03:07]} 23. Rxb3 {[%emt 0:01:41]} Qa6 {[%emt 0:00:04]} 24. Qxa6 {[%emt 0:06:45]} Rxa6 {[%emt 0:00:32]} 25. Rc2 {[%emt 0:01:59]} Rea8 {[%emt 0:01:16]} 26. Rbb2 {[%emt 0:01:27]} R8a7 {[%emt 0:00:20]} 27. Kf1 {[%emt 0:01:39]} Kf7 {[%emt 0:00:08]} 28. Re2 {[%emt 0:06:05]} (28. Rb8 $11) 28... Ra4 {[%emt 0:03:34]} ({Better is} 28... h5 $15) 29. Rec2 $11 {[%emt 0:02:08]} R4a6 {[%emt 0:01:44]} 30. Re2 {[%emt 0:00:02]} Bf6 {[%emt 0:00:14]} 31. Rbc2 {[%emt 0:02:00]} Rb7 {[%emt 0:00:38]} 32. Rb2 {[%emt 0:00:36]} Rba7 {[%emt 0:03:06]} 33. Rbc2 {[%emt 0:00:05]} h5 {[%emt 0:01:29]} 34. g3 {[%emt 0:02:49]} Rb6 {[%emt 0:02:06]} 35. Rc3 {[%emt 0:04:42]} Ra4 {[%emt 0:01:34]} 36. Rec2 {[%emt 0:00:38]} Raa6 {[%emt 0:00:02]} 37. Re2 {[%emt 0:00:06]} Rb1+ {[%emt 0:02:04]} 38. Kg2 {[%emt 0:01:36]} Rd1 {[%emt 0:01:20][%cal Og6g5]} 39. Rec2 {[%emt 0:00:51]} Bxd4 {[%emt 0:00:04]} 40. Bxd4 {[%emt 0:00:36]} Rxd4 {[%emt 0:00:04]} 41. Rxc6 {[%emt 0:17:51]} Rxc6 {[%emt 0:00:04]} 42. Rxc6 {[%emt 0:00:04][%mdl 4096] Endgame. KR-KR} Rd2+ {[%emt 0:00:04]} 43. Kh3 {[%emt 0:00:17]} Rxa2 {[%emt 0:05:56]} 44. g4 {[%emt 0:07:13]} hxg4+ {[%emt 0:07:28]} 45. fxg4 {[%emt 0:00:02]} fxg4+ {[%emt 0:00:16]} 46. Kg3 $1 {[%emt 0:00:25]} Rd2 {[%emt 0:00:59] Threatens to win with ...Rd4.} 47. Rd6 $1 {[%emt 0:00:41]} d4 {[%emt 0:02:26]} ({Don't do} 47... Rd4 48. Kh4 $17) 48. Kf4 $1 {[%emt 0:06:01]} d3 {[%emt 0:03:35]} 49. Kxg4 {[%emt 0:00:52]} Ke7 {[%emt 0:00:53]} 50. Rd4 $1 {[%emt 0:00:09]} Kf6 {[%emt 0:00:07][%cal Of6e5] aiming for ...Ke5!} 51. Kf4 {[%emt 0:00:53]} Rf2+ {[%emt 0:03:08]} 52. Kg3 {[%emt 0:00:20]} Rd2 {[%emt 0:00:10] Strongly threatening ...Ke5.} 53. Kf4 {[%emt 0:00:01]} g5+ {[%emt 0:06:07]} 54. Ke4 {[%emt 0:00:43]} Rxh2 {[%emt 0:01:47] ...Rh4+ is the strong threat.} 55. Rd6+ {[%emt 0:00:21]} Kg7 {[%emt 0:00:07]} 56. Kf5 {[%emt 0:02:05]} d2 {[%emt 0:01:56]} 57. Kxg5 {[%emt 0:00:24]} Kf7 {[%emt 0:01:49]} 58. Kf4 {[%emt 0:00:18]} Ke7 {[%emt 0:00:01]} 59. Rd3 {[%emt 0:00:21]} d1=N {[%emt 0:00:46]} 60. Rxd1 {[%emt 0:00:05]} 1/2-1/2

[Event "Czech Extraliga 2023-24"]
[Site "Czech Republic"]
[Date "2024.04.07"]
[Round "11.5"]
[White "Zilka, Stepan"]
[Black "Laznicka, Viktor"]
[Result "1/2-1/2"]
[ECO "B84"]
[WhiteElo "2579"]
[BlackElo "2597"]
[Annotator "TA"]
[PlyCount "82"]
[EventDate "2023.10.14"]
[EventCountry "CZE"]
[SourceTitle "playchess.com"]
[Source "ChessBase"]
[SourceQuality "1"]
[TimeControl "40/5400+30:1800+30"]

{[%evp 14,82,38,34,39,-28,-28,-25,-44,-10,-36,-31,0,0,0,0,77,58,113,76,84,80,78,56,68,80,60,0,72,0,0,0,17,0,0,-53,-42,-45,-41,-54,-51,-46,-60,-43,-51,-50,-60,-60,-53,-54,-55,-55,-51,-42,-8,-59,-54,-52,-50,-72,-50,-46,-33,-33,-25,-25,0,-25,-37,-35,-32]} 1. e4 {[%emt 0:00:04]} c5 {[%emt 0:01:32]} 2. Nf3 {[%emt 0:00:08]} d6 {[%emt 0:00:04]} 3. d4 {[%emt 0:00:09]} cxd4 {[%emt 0:00:04]} 4. Nxd4 {[%emt 0:00:23]} Nf6 {[%emt 0:00:04]} 5. Nc3 {[%emt 0:00:06]} a6 {[%emt 0:00:05]} 6. Be2 {[%emt 0:02:13]} e6 {[%emt 0:00:05]} 7. Be3 {[%emt 0:01:41]} Nbd7 {[%emt 0:03:40]} 8. g4 {[%emt 0:02:39]} h6 {[%emt 0:18:44]} 9. Qd2 {[%emt 0:02:00]} (9. f4 $14) 9... b5 $1 $11 {[%emt 0:00:05] Threatens to win with ...b4.} 10. a3 {[%emt 0:00:09]} Bb7 {[%emt 0:00:06] Black has an edge.} 11. f3 {[%emt 0:00:16]} d5 {[%emt 0:04:18]} 12. exd5 {[%emt 0:01:23]} Nxd5 {[%emt 0:00:06]} 13. Nxd5 {[%emt 0:00:29]} Bxd5 {[%emt 0:00:07]} 14. O-O-O {[%emt 0:00:50]} g6 {[%emt 0:07:27]} (14... Rc8 $11) 15. h4 {[%emt 0:06:16]} Bg7 {[%emt 0:01:47]} (15... h5 $14) 16. Kb1 {[%emt 0:03:40]} h5 {[%emt 0:02:23]} 17. Rhe1 {[%emt 0:07:20]} Ne5 {[%emt 0:14:00]} 18. Bg5 {[%emt 0:13:32]} Qb6 {[%emt 0:00:27]} 19. gxh5 {[%emt 0:02:27]} Rxh5 {[%emt 0:00:48]} 20. b3 {[%emt 0:20:46] Dodges Nc4} ({White should play} 20. f4 $14 Nc4 21. Qd3 Rxg5 22. hxg5) 20... Rb8 {[%emt 0:13:58]} (20... Nc6 $11 {keeps the balance.} 21. Nxc6 Qxc6) 21. Qb4 {[%emt 0:07:26]} (21. f4 $16 Nc4 22. Qb4 (22. bxc4 $2 bxc4+ $19)) 21... Bf8 $36 {[%emt 0:03:57][%mdl 2048] Black has good play.} 22. Qc3 {[%emt 0:00:01][%cal Od4e6]} b4 {[%emt 0:02:17]} 23. Qe3 {[%emt 0:00:14]} Bg7 {[%emt 0:03:13]} 24. axb4 {[%emt 0:03:43]} (24. f4 Rxg5 25. fxg5 (25. hxg5 $2 Nc6 $19) 25... bxa3 $17 (25... Nc6 26. Bc4 $17)) ({Better is} 24. a4 $11) 24... Qxb4 $15 {[%emt 0:04:17][%cal Oh5g5] Strongly threatening ...Rxg5!} 25. f4 {[%emt 0:00:47] [#]} Rxg5 {[%emt 0:11:19]} 26. hxg5 {[%emt 0:00:58]} Nc6 {[%emt 0:00:19]} 27. Nxc6 {[%emt 0:01:42]} Qa3 {[%emt 0:02:02][%csl Gg7][%cal Ra3a1]} 28. Ne5 $1 {[%emt 0:06:59] [#]} (28. Nxb8 $2 Qb2#) (28. Nd4 $2 Bxb3 29. Qxb3 Rxb3+ 30. cxb3 Bxd4 31. Rxd4 Qxb3+ 32. Ka1 Qc3+ 33. Kb1 Qxd4 $19 (33... Qxe1+ $2 34. Bd1 $19)) 28... Bxb3 {[%emt 0:00:23]} 29. cxb3 {[%emt 0:00:21]} Rxb3+ {[%emt 0:00:13]} 30. Qxb3 {[%emt 0:00:04]} Qxb3+ {[%emt 0:00:07]} 31. Kc1 {[%emt 0:00:46]} Qc3+ {[%emt 0:06:26]} 32. Kb1 {[%emt 0:00:01]} Qb4+ $1 {[%emt 0:01:24]} 33. Kc2 {[%emt 0:00:06][%cal Od1d8] Hoping for Rd8+!} Qa4+ {[%emt 0:00:14]} 34. Kb1 {[%emt 0:01:43]} (34. Kd3 $11) 34... Qxf4 {[%emt 0:00:45]} 35. Nc4 {[%emt 0:00:55]} Qxg5 {[%emt 0:00:06] aiming for ...Qf5+.} 36. Kc2 {[%emt 0:01:22]} Qc5 {[%emt 0:00:30][%mdl 1024] Black has strong compensation.} (36... Qf5+ 37. Bd3 Qd5 (37... Qf2+ 38. Kb1 $17) 38. Bf1) 37. Rb1 {[%emt 0:00:48]} Qf5+ {[%emt 0:00:57]} 38. Bd3 {[%emt 0:00:09]} Qf2+ {[%emt 0:00:10]} 39. Re2 {[%emt 0:00:10] Dancing on a razor blade.} Qd4 {[%emt 0:00:40]} 40. Rb3 {[%emt 0:01:20] Wards off Qc3+} Bf6 {[%emt 0:00:31]} 41. Re4 {[%emt 0:31:01]} Qf2+ {[%emt 0:04:10] Weighted Error Value: White=0.15 (very precise) /Black=0.14 (very precise) .  Mistake:       	White=5     	Black=3      Inaccurate:     	White=1     	Black=2      OK:         	White=14    	Black=12     Best:        	---       	Black=1      Strong:       	White=1     	Black=2      Brilliant:      	---       	Black=2} 1/2-1/2

[Event "Czech Extraliga 2023-24"]
[Site "Czech Republic"]
[Date "2024.04.07"]
[Round "11.5"]
[White "Simacek, Pavel"]
[Black "Bures, Jaroslav"]
[Result "1/2-1/2"]
[ECO "D10"]
[WhiteElo "2446"]
[BlackElo "2414"]
[Annotator "TA"]
[PlyCount "40"]
[EventDate "2023.10.14"]
[EventCountry "CZE"]
[SourceTitle "playchess.com"]
[Source "ChessBase"]
[SourceQuality "1"]
[TimeControl "40/5400+30:1800+30"]

{[%evp 12,40,30,14,20,20,19,24,20,16,26,0,45,53,26,29,79,0,89,84,88,11,18,0,12,0,0,0,0,0,5]} 1. d4 {[%emt 0:00:04]} d5 {[%emt 0:00:03]} 2. c4 {[%emt 0:00:06]} c6 {[%emt 0:00:03]} 3. cxd5 {[%emt 0:01:39]} cxd5 {[%emt 0:00:05]} 4. Nc3 {[%emt 0:00:02]} Nf6 {[%emt 0:00:06]} 5. Bf4 {[%emt 0:00:11]} Nc6 {[%emt 0:00:10]} 6. e3 {[%emt 0:00:06]} Bg4 {[%emt 0:00:17]} 7. f3 {[%emt 0:00:59]} Bd7 {[%emt 0:00:02]} 8. g4 {[%emt 0:00:11]} e6 {[%emt 0:00:03]} 9. Bd3 {[%emt 0:00:44]} Be7 {[%emt 0:00:13] White has an edge.} 10. Nge2 {[%emt 0:00:30]} O-O {[%emt 0:02:07]} 11. Kf2 {[%emt 0:00:55]} Qb6 {[%emt 0:26:48]} 12. Qd2 {[%emt 0:19:32]} Nb4 {[%emt 0:04:52]} 13. Bb1 {[%emt 0:00:22]} Bb5 {[%emt 0:00:02]} (13... h5 $11) 14. Ng3 {[%emt 0:02:20]} (14. Nxb5 $16 {Nbc3 would now be deadly.} Qxb5 15. a3) 14... a5 {[%emt 0:08:10]} (14... Ba6 $11) 15. a3 $16 {[%emt 0:04:31]} Nc6 {[%emt 0:00:07]} 16. Qc2 {[%emt 0:00:24]} ({White should try} 16. g5 $16 {[%cal Oc3b5] aiming for Nxb5!} Nd7 17. Nxb5 Qxb5 18. Ne2) 16... Bc4 $11 {[%emt 0:04:15] The position is equal.} 17. g5 {[%emt 0:18:12]} Bb3 {[%emt 0:00:09]} 18. Qd3 {[%emt 0:01:09]} Bc4 {[%emt 0:00:04]} 19. Qc2 {[%emt 0:06:07]} Bb3 {[%emt 0:00:01]} 20. Qd3 {[%emt 0:00:05]} Bc4 {[%emt 0:00:04] Weighted Error Value: White=0.18 (very precise) /Black=0.21 (precise) .  Mistake:       	White=2     	Black=2      Inaccurate:     	White=1     	Black=1      OK:         	White=5     	Black=3      Best:        	White=1     	Black=4} 1/2-1/2

[Event "Czech Extraliga 2023-24"]
[Site "Czech Republic"]
[Date "2024.04.07"]
[Round "11.5"]
[White "Omelja, Artem"]
[Black "Polak, Tomas"]
[Result "0-1"]
[ECO "A14"]
[WhiteElo "2438"]
[BlackElo "2525"]
[Annotator "TA"]
[PlyCount "160"]
[EventDate "2023.10.14"]
[EventCountry "CZE"]
[SourceTitle "playchess.com"]
[Source "ChessBase"]
[SourceQuality "1"]
[TimeControl "40/5400+30:1800+30"]

{[%evp 21,160,20,27,4,49,24,19,19,62,34,54,22,27,30,65,60,81,59,99,87,106,110,110,79,82,64,208,195,200,189,172,113,129,122,117,105,129,113,121,65,100,61,100,102,119,31,37,0,28,27,27,0,0,0,0,0,0,0,0,0,0,0,0,0,0,-6,0,0,0,0,0,0,8,8,2,2,3,6,16,16,162,168,165,170,164,135,200,197,189,197,202,143,175,66,66,66,66,66,304,66,81,66,66,66,66,67,299,81,485,81,81,81,222,216,206,81,445,438,385,80,80,80,80,80,80,80,433,80,80,0,0,0,0,0,0,0,0,0,0,0,0]} 1. Nf3 {[%emt 0:00:04]} Nf6 {[%emt 0:00:31]} 2. c4 {[%emt 0:00:16]} e6 {[%emt 0:01:15]} 3. b3 {[%emt 0:01:06]} b6 {[%emt 0:03:05]} 4. g3 {[%emt 0:01:31]} Bb7 {[%emt 0:00:43]} 5. Bg2 {[%emt 0:00:12]} c5 {[%emt 0:01:25]} 6. O-O {[%emt 0:00:35]} Be7 {[%emt 0:00:09]} 7. Bb2 {[%emt 0:00:28]} O-O {[%emt 0:00:15]} 8. e3 {[%emt 0:00:57]} d5 {[%emt 0:07:47]} 9. Qe2 {[%emt 0:00:38]} Nbd7 {[%emt 0:00:18][%cal Bb8d7,Bd7f8,Bf8g6][%mdl 32]} 10. Nc3 {[%emt 0:05:47]} Rc8 {[%emt 0:00:52]} 11. d3 {[%emt 0:09:28]} Qc7 {[%emt 0:06:19]} 12. Rad1 {[%emt 0:02:43]} Qb8 {[%emt 0:00:54]} 13. Ne1 {[%emt 0:07:25]} Rfd8 {[%emt 0:18:46]} 14. f4 {[%emt 0:01:11]} Nf8 {[%emt 0:03:17]} 15. Nf3 {[%emt 0:08:02]} Qa8 {[%emt 0:04:37]} 16. Kh1 {[%emt 0:06:22]} Ng6 {[%emt 0:03:31]} 17. Rde1 {[%emt 0:03:54]} dxc4 {[%emt 0:03:47]} 18. bxc4 {[%emt 0:11:04]} a6 {[%emt 0:08:40]} 19. a4 {[%emt 0:02:38]} Bc6 {[%emt 0:03:43]} 20. e4 {[%emt 0:05:55]} Rc7 {[%emt 0:01:17]} 21. Ne5 {[%emt 0:01:22] Nxc6 is the strong threat.} Bb7 {[%emt 0:02:44]} 22. a5 {[%emt 0:04:16]} bxa5 {[%emt 0:00:17]} 23. Na4 {[%emt 0:01:40]} Ne8 {[%emt 0:03:22]} (23... Qa7 $14) 24. Bc3 $1 $18 {[%emt 0:11:01]} Nxe5 {[%emt 0:05:47]} 25. fxe5 {[%emt 0:00:55]} Bc6 {[%emt 0:06:40]} 26. Nb6 {[%emt 0:00:36]} (26. Qf2 $18 f6 (26... Bxa4 27. Qxf7+ Kh8 28. Qf8+ Bxf8 29. Rxf8#) 27. Nb6 (27. Nxc5 Bxc5 28. Qxc5 Bxe4 $11) (27. exf6 gxf6 28. Nxc5 Bxc5 $16)) 26... Qa7 $16 {[%emt 0:02:13]} 27. Bxa5 {[%emt 0:00:27]} Rb8 {[%emt 0:02:32] [#]} 28. Nd5 {[%emt 0:00:23][%mdl 512]} Rcb7 {[%emt 0:00:34]} (28... Rcc8 29. Ra1) 29. Nxe7+ {[%emt 0:05:49]} Rxe7 {[%emt 0:00:04]} 30. Rb1 {[%emt 0:00:50] Wards off Rb3} (30. Ra1 $16) 30... Reb7 {[%emt 0:00:57]} 31. Qc2 {[%emt 0:02:35]} Nc7 {[%emt 0:01:39]} 32. Rxb7 {[%emt 0:00:33]} Rxb7 {[%emt 0:00:23] Black is weak on the dark squares} 33. Rb1 {[%emt 0:01:18]} (33. Qc3 $16) 33... Na8 $1 $14 {[%emt 0:02:13]} 34. Qc1 {[%emt 0:01:25]} h6 {[%emt 0:00:44]} 35. Qg1 {[%emt 0:00:44]} Ba4 {[%emt 0:03:08]} 36. h3 {[%emt 0:03:13]} Bc2 {[%emt 0:00:41][%csl LRb1,LRd3]} 37. Rxb7 {[%emt 0:00:19]} Qxb7 {[%emt 0:00:03]} 38. Qxc5 {[%emt 0:01:15]} Bxd3 {[%emt 0:00:11]} 39. Qd4 $1 {[%emt 0:00:27]} Qb1+ {[%emt 0:01:25]} 40. Kh2 {[%emt 0:00:17]} Qa2 {[%emt 0:02:32]} 41. Qxd3 {[%emt 0:04:54]} Qxa5 $11 {[%emt 0:00:11][%mdl 4096] Endgame. KQB-KQN} 42. Qd6 $1 {[%emt 0:03:17]} Nc7 {[%emt 0:05:19]} 43. c5 {[%emt 0:07:39] Threatens to win with Qb6.} Nb5 {[%emt 0:01:41]} 44. Qb6 {[%emt 0:02:38]} Qc3 {[%emt 0:01:13]} 45. c6 {[%emt 0:00:52]} Qxe5 {[%emt 0:02:17]} 46. Qxa6 {[%emt 0:00:16]} Nc7 {[%emt 0:05:39] Against Qa8+} 47. Qc8+ {[%emt 0:00:26]} Kh7 {[%emt 0:00:08]} 48. Qd7 {[%emt 0:00:11]} Kg8 {[%emt 0:01:47]} 49. Qd8+ {[%emt 0:00:47]} Kh7 {[%emt 0:00:08]} 50. h4 {[%emt 0:00:08]} g6 {[%emt 0:02:07]} (50... Kg6 $11) 51. Qf8 $18 {[%emt 0:01:15]} f5 {[%emt 0:04:05]} 52. Qf7+ {[%emt 0:01:26]} Qg7 {[%emt 0:00:10]} 53. Qd7 {[%emt 0:00:13][%cal Oh4h5]} Kg8 {[%emt 0:04:14]} (53... h5 $16 54. e5 Kh6 55. Qd2+ Kh7) 54. exf5 {[%emt 0:10:40]} gxf5 {[%emt 0:02:01]} 55. Bf3 $1 {[%emt 0:01:17]} Qf7 {[%emt 0:01:16]} 56. Qd8+ {[%emt 0:00:50]} Kg7 {[%emt 0:05:59] [#]} 57. Bh5 {[%emt 0:00:09]} Qxh5 $14 {[%emt 0:00:03]} 58. Qxc7+ {[%emt 0:00:06] KQ-KQ} Kg6 {[%emt 0:00:45]} 59. Qe5 {[%emt 0:00:41] Inhibits Qe2+.} Qf3 $2 {[%emt 0:00:31]} (59... Kf7 $1 $14) 60. Qxe6+ $18 {[%emt 0:00:23]} Kg7 {[%emt 0:00:11]} 61. Qc4 {[%emt 0:01:54] c7 would now be deadly.} Qf2+ $1 {[%emt 0:00:24]} 62. Kh3 {[%emt 0:00:07] Strongly threatening c7.} Qg1 {[%emt 0:01:09][%cal Rg1h1]} 63. Qc3+ {[%emt 0:00:15]} Kg6 $2 {[%emt 0:00:21]} (63... Kh7 $14 64. Qf3 Kg7) 64. Qf3 $2 {[%emt 0:00:55]} (64. h5+ $1 $18 Kf7 65. Qf3) 64... h5 $2 {[%emt 0:00:44][%mdl 8192]} (64... Kg7 $16 {is tougher.}) 65. Qg2 $2 {[%emt 0:01:08]} (65. c7 $18 Qc1 66. Qb7 Qf1+ 67. Kh2 Qf2+ 68. Qg2) 65... Qc1 $16 {[%emt 0:00:18]} 66. Kh2 {[%emt 0:00:08]} Kf6 {[%emt 0:00:56]} (66... Qc5 $16) 67. Qd5 $18 {[%emt 0:00:34]} Qc2+ {[%emt 0:00:21]} 68. Kg1 {[%emt 0:00:53]} (68. Kh3 $18 {is the precise move to win.}) 68... Qc1+ $2 {[%emt 0:00:18][%mdl 8192]} (68... Qe2 $16) 69. Kg2 {[%emt 0:00:31]} Qc2+ {[%emt 0:00:09]} 70. Kh3 $2 {[%emt 0:00:11]} (70. Kf1 $18) 70... Qc1 $16 {[%emt 0:00:34]} 71. Qf3 {[%emt 0:01:01]} Kg6 {[%emt 0:00:57] [#]} 72. Kh2 $1 {[%emt 0:00:17] Black must now prevent Qf4.} Qc2+ {[%emt 0:00:36] [#]} 73. Qg2 $1 {[%emt 0:00:15]} Qc1 $2 {[%emt 0:00:10][%mdl 8192]} (73... Qc5 $16 {is a better chance.}) 74. Qa2 $2 {[%emt 0:00:52]} (74. Qd5 $18 {and the rest is easy. White threatens Qe6+ and mate.} Qc2+ 75. Kg1) 74... Kf6 {[%emt 0:00:42]} 75. Qg8 {[%emt 0:00:36]} (75. Qa6 $16 {Threatening mate with c7+.} Qc2+ 76. Kh3) 75... Qc2+ $11 {[%emt 0:00:19] The position is equal.} 76. Kh3 {[%emt 0:00:14] And now Qg5+ would win.} Qxc6 {[%emt 0:00:48][%cal Rc6h1]} 77. Qg5+ {[%emt 0:00:30]} Ke5 {[%emt 0:00:03][%cal Rc6h1]} 78. Qf4+ {[%emt 0:00:27]} (78. Qxh5 $2 Qh1#) 78... Ke6 {[%emt 0:00:07][%cal Rc6h1]} 79. Qh6+ {[%emt 0:00:45]} Kd7 $1 {[%emt 0:00:05][%cal Rc6h1]} 80. Qg7+ {[%emt 0:00:33]} (80. Qxh5 $2 Qh1#) 80... Kd8 {[%emt 0:00:33][%mdl 32768] Black escapes into a draw.   Weighted Error Value: White=0.17 (very precise) /Black=0.24 (precise) .  Loses game:     	---       	Black=5      Missed win:     	White=4     	---        Mistake:       	White=6     	Black=4      Inaccurate:     	White=5     	Black=7      OK:         	White=20    	Black=18     Best:        	White=10    	Black=13     Strong:       	White=4     	Black=3      Brilliant:      	White=1     	---       . Sensor Board Error (Ke4/e5)?} 0-1